[Event "4NCL 2022-2023"]
[Site "Daventry"]
[Date "2023.01.14"]
[Round "3.48"]
[White "Flint, Martina"]
[Black "Haydon, David L"]
[Result "0-1"]
[ECO "A03"]
[WhiteElo "1840"]
[BlackElo "2289"]
[Annotator "TA"]
[PlyCount "112"]
[EventDate "2022.10.20"]
[EventType "team-tourn"]
[EventCountry "ENG"]
[SourceTitle "playchess.com"]
[Source "ChessBase"]
[SourceQuality "1"]
[TimeControl "40/6000+30:2400+30"]

{[%evp 15,112,-19,-15,-60,-52,-51,-47,-32,-44,-43,-41,-46,-46,-58,-46,-59,-54,-67,-34,-34,0,0,0,0,14,24,12,12,12,12,20,-13,-11,-5,43,-83,65,61,62,10,0,8,32,-27,0,-195,-193,-170,-20,-28,0,-79,-85,-78,37,-169,1,0,28,11,110,75,157,8,8,8,176,-110,-110,-153,-125,-116,-129,-162,-157,-230,-158,-165,-67,-156,-159,-615,-619,-1188,-1188,-1100,-1098,-1102,-1125,-1096,-1064,-29974,-29975,-12849,-9077,-2630,-2181,-1890,-1857]} 1. f4 {[%emt 0:00:07]} Nf6 {[%emt 0:00:11]} 2. g3 {[%emt 0:00:12]} d5 {[%emt 0:03:13]} 3. Nf3 {[%emt 0:00:41]} c5 {[%emt 0:00:24]} 4. Bg2 {[%emt 0:00:36]} Nc6 {[%emt 1:38:42]} 5. O-O {[%emt 0:00:50]} g6 {[%emt 0:00:00]} 6. c3 {[%emt 0:02:33]} Bg7 {[%emt 0:00:00]} 7. d3 {[%emt 0:01:09]} O-O {[%emt 0:00:00]} 8. Qc2 {[%emt 0:00:40]} d4 {[%emt 0:00:00]} 9. c4 {[%emt 0:06:23] A03: Bird's Opening with 1...d5.} Ng4 {[%emt 0:00:00]} 10. h3 {[%emt 0:03:07]} Ne3 {[%emt 0:00:00]} 11. Bxe3 {[%emt 0:00:08] Black is slightly better.} dxe3 {[%emt 0:00:00]} 12. Nc3 {[%emt 0:00:33]} e5 {[%emt 0:00:00]} 13. fxe5 {[%emt 0:03:48]} Nxe5 {[%emt 0:00:00]} 14. Nd5 {[%emt 0:01:32] [#]} Re8 $146 {[%emt 0:00:00]} ({Predecessor:} 14... Nxf3+ 15. Rxf3 Bd7 16. Kh2 Bd4 17. Nxe3 Bc6 18. Nd5 Bxd5 19. cxd5 Qxd5 20. Raf1 Qxa2 {½-½ Kharmunova,N (2156)-Smirnova,E (2202) Moscow-ch (Women) 2017 (8)}) 15. Rab1 {[%emt 0:01:34]} (15. Nxe3 $2 Nxf3+ 16. Rxf3 Bd4 $19) 15... Nc6 {[%emt 0:00:00]} 16. Kh2 {[%emt 0:02:58]} Qd6 {[%emt 0:00:00]} 17. a3 {[%emt 0:09:26]} Bd7 {[%emt 0:00:00]} 18. b4 {[%emt 0:01:48]} cxb4 {[%emt 0:00:00]} 19. axb4 {[%emt 0:01:04]} Rac8 {[%emt 0:00:00]} 20. Ng5 {[%emt 0:05:28]} Bf5 {[%emt 0:00:00]} 21. Ne4 {[%emt 0:05:31] A dynamic duo of knights.} Qe5 {[%emt 0:00:00]} 22. Qa2 {[%emt 0:05:17]} Nd4 {[%emt 0:00:00]} 23. Rbe1 {[%emt 0:07:49]} Bxe4 {[%emt 0:00:00]} (23... h5 {keeps more tension.} 24. Qxa7 Bxe4 25. dxe4 h4) 24. dxe4 {[%emt 0:00:30]} a6 {[%emt 0:00:00]} (24... h5 $11) 25. h4 {[%emt 0:15:23]} (25. Nxe3 $14 Qg5 26. Nd5) 25... f5 {[%emt 0:00:00] Black is more active.} (25... g5 $1 $17 {[%cal Rg5h4]} 26. h5 g4) 26. Nxe3 {[%emt 0:04:30]} Kh8 {[%emt 0:00:00]} 27. Nd5 {[%emt 0:00:47]} (27. c5 $1 $14) 27... fxe4 $11 {[%emt 0:00:00]} 28. Rf4 {[%emt 0:01:57]} e3 {[%emt 0:00:00]} 29. Re4 {[%emt 0:03:14]} (29. Ref1 $14) 29... Qh5 {[%emt 0:00:00] aiming for ...Rxe4.} (29... Qb8 $5 {[%cal Re8e4]} 30. Rg4 (30. Rxe3 Rxe3 31. Nxe3 Be5 $15) (30. Nxe3 $2 Rxe4 31. Bxe4 Re8 $19) 30... Be5 $15) 30. Rxe3 {[%emt 0:02:05]} (30. Qb1 $11 {and White stays safe.}) 30... Rxe3 $19 {[%emt 0:00:00]} 31. Nxe3 {[%emt 0:00:22]} Be5 {[%emt 0:00:00]} (31... Re8 $19 32. Nf1 g5) 32. Kh3 $11 {[%emt 0:03:11]} Bc7 {[%emt 0:03:40][%mdl 1024] Prevents Qa5. Black has compensation.} (32... Nf5 33. Bf3 (33. Bxb7 $2 Nxe3 34. Bf3 Qf5+ 35. Kh2 Rxc4 $19) 33... Qh6 34. Ng4 $16 (34. Bxb7 Qxe3) (34. Nxf5 gxf5 35. c5 Rg8 $14)) (32... g5 $5 {[%cal Re5g3]} 33. Bf3 (33. Bxb7 $2 gxh4 34. g4 Qf7 $19) 33... Nxf3 34. exf3 Qxf3 $11) 33. Nd5 {[%emt 0:03:50] [#]} (33. Qa3 $11) 33... Qf5+ $1 $17 {[%emt 0:03:18]} (33... Bxg3 34. Kxg3 Nf5+ 35. Kf2 Qxh4+ 36. Kf1 $11) 34. Kh2 {[%emt 0:04:01]} Be5 {[%emt 0:00:30] [#]} (34... Qf2 $17 35. Nxc7 Qxe1) 35. Bf3 $2 {[%emt 0:03:22]} Rf8 $2 {[%emt 0:01:08]} (35... g5 $19 36. Ne7 Bxg3+ {[%mdl 64] Decoy} 37. Kxg3 Qe5+ 38. Kg2 Qxe7) 36. Rf1 $11 {[%emt 0:00:48]} Kg7 {[%emt 0:01:21]} (36... g5 $5 {[%cal Rg5h4]} 37. Bg2 Bxg3+ 38. Kh1 (38. Kxg3 Qe5+) 38... Qc8 $11) 37. Qd2 {[%emt 0:00:53] Prevents g5.} Re8 {[%emt 0:00:24]} (37... Qc8 $11 {remains equal.}) 38. Ne3 {[%emt 0:02:46][%csl LRb7,LRf5]} Qd7 {[%emt 0:01:52]} (38... Qe6 $142) 39. Qd3 {[%emt 0:01:30]} (39. Kg2 $16) 39... Bxg3+ $1 $40 {[%emt 0:00:07][%mdl 192] Double Attack. Black mounts an attack.} 40. Kg2 $1 {[%emt 0:00:48] Rd1 is the strong threat.} (40. Kxg3 $2 {too greedy.} Rxe3 41. Qd1 Qd6+ 42. Kg2 Qf4 $19) 40... Bxh4 $2 {[%emt 0:01:23]} (40... Be5 $11) 41. Nd5 $2 {[%emt 0:41:10]} (41. Bd5 $18 Bf6 42. Rxf6 {[%mdl 64] Remove Defender} Kxf6 43. Qxd4+ Kg5 44. Qd2) 41... Nxf3 $17 {[%emt 0:41:53]} 42. Qxf3 {[%emt 0:00:49]} Qe6 {[%emt 0:00:27]} 43. e3 {[%emt 0:00:46] Nc7 would be deadly.} Bd8 {[%emt 0:01:42] Inhibits Nc7.} 44. Kg1 {[%emt 0:01:29]} h5 {[%emt 0:00:00]} 45. Kh2 {[%emt 0:00:00]} (45. Kg2 $17 {keeps fighting.}) 45... Be7 {[%emt 0:00:00] Hoping for ...Bd6+.} 46. c5 {[%emt 0:00:00] Prevents Bd6+.} (46. Qf4 $2 Bd6 47. Nc7 Bxf4+ $19) 46... Rd8 {[%emt 0:00:00]} (46... Bg5 $19 47. Kg2 Qe5) 47. e4 {[%emt 0:00:00]} (47. Nf4 $1 $15 Qf6 48. Qxb7 Rd2+ 49. Kg1) 47... Qe5+ {[%emt 0:00:00]} 48. Kh1 $2 {[%emt 0:00:00]} (48. Qf4 $17 Qxf4+ 49. Nxf4 Rd2+ 50. Kg3) 48... Rf8 $19 {[%emt 0:00:00][%mdl 64] Skewer} 49. Nf4 {[%emt 0:00:00]} Kh6 {[%emt 0:00:00]} 50. Kg2 {[%emt 0:00:00]} Qg5+ {[%emt 0:00:00]} 51. Kh2 {[%emt 0:00:00]} Qh4+ {[%emt 0:00:00]} 52. Kg2 {[%emt 0:00:00]} g5 {[%emt 0:00:00][%cal Rf8f4]} 53. Rh1 {[%emt 0:00:00]} Rxf4 {[%emt 0:00:00]} (53... Qxf4 54. Qxh5+ Kg7 55. Qh7+ Kf6 56. Rh6+ Ke5 57. Qxe7+ Kd4 58. Qd7+ (58. Qxb7 $2 {leads to mate.} Qf1+ 59. Kh2 Rf2+ 60. Kg3 Qg2#) 58... Ke3 59. Rh3+ Kxe4 60. Qd3+ Ke5 61. Qd6+ Ke4 62. Qd3+ Ke5 63. Re3+ Kf6 64. Rf3 $18) 54. Rxh4 {[%emt 0:00:00]} Rxf3 {[%emt 0:00:00] Black is clearly winning.} 55. Rh1 {[%emt 0:00:00]} Rb3 {[%emt 0:00:00][%cal Og5g4] Threatens to win with ...g4!} 56. Rd1 {[%emt 0:00:00]} Rxb4 {[%emt 0:00:00] A cool game by Haydon.   Weighted Error Value: White=0.73/Black=0.39} 0-1

[Event "4NCL 2022-2023"]
[Site "Daventry"]
[Date "2023.01.15"]
[Round "4.1"]
[White "Chow, Samuel"]
[Black "Pert, Nicholas"]
[Result "0-1"]
[ECO "D10"]
[WhiteElo "2318"]
[BlackElo "2540"]
[Annotator "TA"]
[PlyCount "108"]
[EventDate "2022.10.20"]
[EventType "team-tourn"]
[EventCountry "ENG"]
[SourceTitle "playchess.com"]
[Source "ChessBase"]
[SourceQuality "1"]
[TimeControl "40/6000+30:2400+30"]

{[%evp 10,108,26,26,29,28,19,30,39,45,34,20,45,36,16,21,10,14,14,18,24,18,32,16,71,8,13,14,8,7,27,26,64,49,160,82,132,110,139,79,80,16,5,0,0,0,0,0,0,0,0,0,-18,-154,-153,-162,-145,-273,-271,-397,-393,-387,-377,-700,-557,-625,-609,-589,-561,-683,-567,-537,0,-687,-673,-856,-833,-963,-914,-29978,-29979,-29979,-29980,-29979,-1077,-882,0,-29979,-29981,-29983,-29984,-29980,-29979,-29979,-29980,-29980,-29981,-29995,-29995,-29995,-29996]} 1. d4 {[%emt 0:00:03]} d5 {[%emt 0:02:18]} 2. c4 {[%emt 0:00:15]} c6 {[%emt 0:00:07]} 3. Nc3 {[%emt 0:00:19]} Nf6 {[%emt 0:00:30]} 4. e3 {[%emt 0:00:19]} Bf5 {[%emt 0:00:43]} 5. cxd5 {[%emt 0:00:44]} cxd5 {[%emt 0:00:20]} 6. Qb3 {[%emt 0:00:12]} Nc6 {[%emt 0:00:53] is the new trend. D10: Slav Defence: 3 cxd5 (without early Nf3) and 3 Nc3.} 7. Qxb7 {[%emt 0:00:44]} Bd7 $1 {[%emt 0:00:36]} 8. Qb3 {[%emt 0:00:23]} Rb8 {[%emt 0:00:46] White has an edge.} 9. Qd1 {[%emt 0:00:20]} e5 {[%emt 0:00:44]} 10. dxe5 {[%emt 0:00:32]} Nxe5 {[%emt 0:00:09]} 11. Be2 {[%emt 0:00:26]} (11. Nge2 $5 {[%cal Ra2a3]}) 11... Bd6 {[%emt 0:02:36]} 12. Nf3 {[%emt 0:00:21]} Nxf3+ {[%emt 0:02:03]} 13. Bxf3 {[%emt 0:00:14]} Qc7 {[%emt 0:00:38]} 14. h3 {[%emt 0:00:20]} O-O $1 {[%emt 0:00:45]} 15. O-O {[%emt 0:00:12]} Rfd8 {[%emt 0:01:11]} 16. Qe2 {[%emt 0:00:47]} Bh2+ {[%emt 0:03:42]} 17. Kh1 {[%emt 0:00:07] Black should prevent g3.} Be5 $1 {[%emt 0:00:07]} 18. a4 {[%emt 0:04:51]} (18. Bxd5 $2 Bxc3 19. bxc3 Nxd5 $19) (18. Nxd5 $2 Nxd5 19. a4 (19. Bxd5 $2 Bb5 $19 {[%mdl 64] Discovered Attack}) 19... Be6 $19) 18... Be6 {[%emt 0:08:44]} 19. Rd1 {[%emt 0:03:56]} Rb4 {[%emt 0:08:11]} 20. Nb5 {[%emt 0:07:52]} Qd7 {[%emt 0:06:31][%cal Oe6h3] [#]} 21. Kg1 $146 {[%emt 0:06:04]} ({Predecessor:} 21. Nd4 Bxh3 22. Kg1 Bg4 23. a5 Bc7 24. b3 Rbb8 25. Bb2 Re8 26. Rdc1 h5 27. Rc6 {0-1 Arabidze,M (2441)-Gunina,V (2480) EU-chT (Women) 23rd 2021 (4.1)}) 21... Rh4 {[%emt 0:13:49] [#]} ({Better is} 21... Rc8 $14) 22. Nd4 {[%emt 0:07:42]} ({White should play} 22. e4 $1 Nxe4 23. g3 Bxg3 24. fxg3 Rxh3 25. Bxe4) 22... Bb8 {[%emt 0:05:39]} (22... Rc8 $142) 23. Nxe6 $16 {[%emt 0:10:32]} Qxe6 {[%emt 0:03:42]} 24. Rd4 {[%emt 0:02:49]} (24. Bd2 $142) 24... Qe5 {[%emt 0:03:41] [#] ( -> ...Qh2+)} 25. Qd1 {[%emt 0:03:50]} (25. Rxh4 $2 Qh2+ 26. Kf1 Qh1#) (25. Rf4 g5 26. g3 gxf4 $11) (25. g3 $1 $16 Rxh3 26. Bd2) 25... Rxd4 $11 {[%emt 0:04:36]} 26. exd4 {[%emt 0:01:31]} Qh2+ $40 {[%emt 0:02:14][%mdl 128] White needs to defend precisely.} 27. Kf1 {[%emt 0:00:06]} Re8 {[%emt 0:03:13][%cal Rh2h1]} 28. Be3 {[%emt 0:02:47]} h5 {[%emt 0:05:44][%cal Og7g5,Bh7h5,Bh5g4][%mdl 32]} 29. Rc1 {[%emt 0:05:49]} Bf4 {[%emt 0:04:59]} 30. Ke2 {[%emt 0:15:43]} (30. Bxh5 $2 Nxh5 31. Qxh5 Qh1+ 32. Ke2 Qxc1 $19) 30... g5 {[%emt 0:03:14]} 31. Kd2 {[%emt 0:04:19] [#] White is on the road to losing.} (31. Rc6 $1 $11 {keeps the balance.} Bxe3 {[%mdl 64] Remove Defender} 32. fxe3) 31... g4 $1 $17 {[%emt 0:03:28][%mdl 512] Black is more active.} 32. hxg4 {[%emt 0:02:03]} hxg4 {[%emt 0:00:08]} 33. Bxd5 {[%emt 0:09:43]} (33. Qh1 $17 {was worth a try.} gxf3 34. Qxh2 Bxh2 35. gxf3) 33... Qh4 $19 {[%emt 0:10:27]} (33... Nxd5 34. Qxg4+ Kf8 35. Rc8 $17) 34. Bxf4 {[%emt 0:08:45]} (34. Bxf7+ $142 Kxf7 35. Qb3+ Kg7 36. g3 Bxg3 37. Qb7+ Kg6 38. Qg2 Ne4+ 39. Kd3 Bxf2 40. Rh1 Qxh1 41. Qxh1 Bxe3 42. Qg2) 34... Qxf2+ {[%emt 0:00:08]} (34... Nxd5 35. Be3 $16) 35. Kd3 {[%emt 0:00:10][%cal Og2g3] g3! would be deadly.} Qxf4 {[%emt 0:00:20]} (35... Nxd5 36. Qxg4+ Kf8 37. Bh6+ Ke7 38. Qe4+ Kf6 39. Rc6+ Re6 40. Qe5+ Ke7 41. Bg5+) 36. Bc4 $2 {[%emt 0:03:57]} (36. Rc5 Nd7 37. Rb5) 36... Qf2 {[%emt 0:05:13][%csl Gf2][%cal Re8e3]} ({Stronger than} 36... Re3+ 37. Kc2 $11) 37. Kc3 {[%emt 0:03:04]} Re3+ {[%emt 0:00:57]} ({Inferior is} 37... Qxg2 38. b3 $17) 38. Bd3 {[%emt 0:00:39]} Qxg2 {[%emt 0:00:22] Threatens to win with ...Ne4+.} 39. Qc2 {[%emt 0:05:08]} Qd5 {[%emt 0:02:12]} 40. Kd2 {[%emt 0:02:00]} Qg2+ {[%emt 0:04:13]} (40... Qxd4 $2 {perishes.} 41. Qc4 Ne4+ 42. Kc2 Qxc4+ 43. Bxc4 $19) 41. Kc3 $1 {[%emt 0:00:00]} Qf3 {[%emt 0:03:27] And now ...Nd5+ would win.} 42. b3 {[%emt 0:06:26]} Kg7 {[%emt 0:12:54] Strongly threatening ...Nd5+.} 43. Rg1 {[%emt 0:03:45]} g3 {[%emt 0:06:20] Hoping for ...Ne4+.} 44. a5 {[%emt 0:07:03]} Ne4+ {[%emt 0:02:54]} 45. Kc4 {[%emt 0:00:28]} Nd6+ {[%emt 0:00:23][%mdl 64] Deflection} 46. Kc5 {[%emt 0:02:45]} Nb7+ {[%emt 0:04:37]} (46... Rxd3 $142 47. Rc1 Qh5+ {[%mdl 64] Deflection} 48. Kb4 Rxd4+ 49. Ka3 Qxa5+ 50. Kb2 Rd2 51. Qxd2 Qxd2+ 52. Rc2 Qxc2+ {[%mdl 64] Promotion} 53. Kxc2 g2 54. Kd3 g1=Q 55. Kd2 Qd4+ 56. Kc2 Ne4 57. b4 Qc3+ 58. Kb1 Nd2+ 59. Ka2 Qb3+ 60. Ka1 Qb1#) 47. Kc4 {[%emt 0:00:11]} Nd6+ {[%emt 0:00:02]} (47... Nxa5+ $19 48. Kc3 Nc6) 48. Kc5 $1 {[%emt 0:00:08]} Rxd3 {[%emt 0:01:14] Black mates.} 49. Kxd6 {[%emt 0:00:09]} Rxd4+ {[%emt 0:00:02] KQR-KQR} 50. Kc7 {[%emt 0:00:26]} Qf4+ {[%emt 0:00:12]} 51. Kb7 {[%emt 0:03:58]} Rb4+ {[%emt 0:00:45]} 52. Kc6 {[%emt 0:00:31]} Qf6+ {[%emt 0:00:41]} 53. Kc7 {[%emt 0:00:35]} Qe7+ {[%emt 0:01:30]} 54. Kc6 {[%emt 0:00:14]} Qb7+ {[%emt 0:00:23] Artfully played by Pert.   Weighted Error Value: White=0.50/Black=0.44} 0-1

[Event "4NCL 2022-2023"]
[Site "Daventry"]
[Date "2023.01.15"]
[Round "4.2"]
[White "Williams, Simon K"]
[Black "Townsend, M Paul"]
[Result "1/2-1/2"]
[ECO "D00"]
[WhiteElo "2467"]
[BlackElo "2161"]
[Annotator "TA"]
[PlyCount "36"]
[EventDate "2022.10.20"]
[EventType "team-tourn"]
[EventCountry "ENG"]
[SourceTitle "playchess.com"]
[Source "ChessBase"]
[SourceQuality "1"]
[TimeControl "40/6000+30:2400+30"]

{[%evp 9,36,7,11,12,9,23,18,-13,-13,-13,-13,-9,-15,-14,-16,-20,-21,-71,-72,-89,0,0,-5,-2,0,0,0,0,0]} 1. Nc3 {[%emt 1:41:00]} d5 {[%emt 1:41:00][%cal Bd7d5,Bd5e4][%mdl 32]} 2. d4 {[%emt 0:00:00]} Nf6 {[%emt 0:00:00]} 3. Bf4 {[%emt 0:00:00]} c5 {[%emt 0:00:00]} 4. e4 {[%emt 0:00:00]} dxe4 {[%emt 0:00:00]} 5. dxc5 {[%emt 0:00:00]} Nbd7 {[%emt 0:00:00]} 6. Bb5 {[%emt 0:00:00] [#] Threatens to win with Qd4. D00: 1 d4 d5: Unusual lines.} e5 $146 {[%emt 0:00:00] Against Qd4} ({Predecessor:} 6... a6 7. c6 axb5 8. c7 e5 9. cxd8=Q+ Kxd8 10. Bxe5 Be7 11. Nge2 {1-0 Bharath,S (2479)-Bagrationi,A (2468) Titled Tuesday intern op 28th Jun Early blitz 2022 (3)}) 7. Bxe5 {[%emt 0:00:00]} Bxc5 {[%emt 0:00:00]} 8. Bxf6 {[%emt 0:00:00][%mdl 64] [#] Remove Defender} Qxf6 {[%emt 0:00:00][%csl Gc5][%cal Rf6f2]} 9. Nxe4 {[%emt 0:00:00]} Qxb2 {[%emt 0:00:00]} 10. Rb1 {[%emt 0:00:00]} ({Reject} 10. Bxd7+ Bxd7 11. Rb1 (11. Nxc5 $2 Qc3+ 12. Kf1 Qxc5 $19) 11... Qxa2 12. Nxc5 Qa5+ 13. Qd2 Qxc5 $17) 10... Qe5 {[%emt 0:00:00]} (10... Qxa2 $2 11. Nxc5 O-O 12. Nxd7 $18 (12. Bxd7 Rd8 $16)) 11. Qe2 {[%emt 0:00:00]} O-O {[%emt 0:00:00] aiming for ...Re8.} 12. Nf3 {[%emt 0:00:00]} Qe7 {[%emt 0:00:00]} 13. Bxd7 {[%emt 0:00:00]} (13. O-O $11) 13... Bxd7 $17 {[%emt 0:00:00]} 14. Rxb7 {[%emt 0:00:00] [#]} Rab8 {[%emt 0:00:00]} ({Better is} 14... Bb6 $1 $17 {Strongly threatening ...Qb4+.} 15. O-O Qe6) 15. Nxc5 $11 {[%emt 0:00:00] The position is equal.} Qxc5 {[%emt 0:00:00]} 16. Rxb8 {[%emt 0:00:00]} (16. Rxd7 $2 {too greedy.} Rfe8 17. Rd2 Rxe2+ 18. Kxe2 Re8+ 19. Kd3 Qf5+ 20. Kc3 Qa5+ 21. Kd3 Qa6+ 22. c4 Qg6+ 23. Kd4 Qg4+ 24. Kc3 Qxg2 $19) 16... Rxb8 {[%emt 0:00:00]} 17. O-O {[%emt 0:00:00]} Be6 {[%emt 0:00:00]} 18. Rc1 {[%emt 0:00:00]} Qa3 {[%emt 0:00:00] Weighted Error Value: White=0.11 (very precise) /Black=0.10 (very precise)} 1/2-1/2

[Event "4NCL 2022-2023"]
[Site "Daventry"]
[Date "2023.01.15"]
[Round "4.3"]
[White "Weller, Jean-Luc"]
[Black "Kirk, Ezra"]
[Result "0-1"]
[ECO "A80"]
[WhiteElo "2233"]
[BlackElo "2432"]
[Annotator "TA"]
[PlyCount "86"]
[EventDate "2022.10.20"]
[EventType "team-tourn"]
[EventCountry "ENG"]
[SourceTitle "playchess.com"]
[Source "ChessBase"]
[SourceQuality "1"]
[TimeControl "40/6000+30:2400+30"]

{[%evp 9,86,27,32,20,11,-42,-48,-45,-53,-69,-66,-63,-56,-64,0,0,0,0,0,0,10,0,0,-8,43,6,44,24,50,28,31,33,18,16,3,7,117,135,131,48,54,60,45,0,5,-49,-40,-34,0,0,0,0,0,0,0,-23,0,-66,-63,-264,-283,-260,-220,-231,0,-326,-309,-352,-341,-317,-338,-425,-387,-931,-853,-855,-850,-635,-628]} 1. Nf3 {[%emt 0:00:05]} f5 {[%emt 0:14:13]} 2. d4 {[%emt 0:02:02]} g6 {[%emt 0:01:29]} 3. Nc3 {[%emt 0:04:08]} Nf6 {[%emt 0:06:43]} 4. Bg5 {[%emt 0:03:41]} d5 {[%emt 0:05:00]} 5. Ne5 {[%emt 0:11:55] [#]} Be6 $146 {[%emt 0:00:07]} ({Predecessor:} 5... Bg7 6. f3 c6 7. Qd2 Nbd7 8. O-O-O Nf8 9. Bh6 Bxh6 10. Qxh6 Be6 11. h4 Qc7 {0-1 Brandao,M (2036)-Pereira,S (2289) Fortaleza op 26th 2011 (1)}) 6. f3 {[%emt 0:03:01][%cal Bf2f3,Bf3e4,Be4d5][%mdl 32] A80: Dutch Defence: Unusual White second moves.} Nbd7 {[%emt 0:02:32] [#]} 7. e4 {[%emt 0:10:44]} fxe4 $15 {[%emt 0:02:55]} 8. fxe4 {[%emt 0:04:03] Black is slightly better.} Nxe5 {[%emt 0:01:09]} 9. Bxf6 $1 {[%emt 0:07:23]} exf6 {[%emt 0:04:32]} 10. exd5 $1 {[%emt 0:01:55][%cal Od4e5]} Bg4 {[%emt 0:14:17]} 11. Be2 {[%emt 0:01:28][%cal Od4e5]} Bxe2 {[%emt 0:00:25]} (11... Qe7 $1 $15 12. dxe5 Qxe5) 12. Qxe2 $11 {[%emt 0:00:10][%mdl 64] Pin} Bd6 {[%emt 0:00:07][%cal Od8e7]} 13. dxe5 {[%emt 0:08:16]} Bxe5 {[%emt 0:00:15]} 14. O-O-O {[%emt 0:12:07]} O-O {[%emt 0:04:00] Black is weak on the light squares} 15. Qd3 {[%emt 0:04:24]} Qd7 {[%emt 0:04:38]} 16. Ne4 {[%emt 0:10:24]} Qa4 {[%emt 0:04:55]} (16... Rae8 $11) 17. a3 {[%emt 0:03:25]} Qa5 {[%emt 0:00:28] Dodges Nc5} 18. h4 {[%emt 0:01:55]} Rad8 {[%emt 0:02:32]} 19. Qc4 {[%emt 0:06:44] Against c6} Qb6 {[%emt 0:11:12]} 20. c3 {[%emt 0:00:16]} Qe3+ $1 {[%emt 0:00:07]} ({Don't do} 20... f5 21. Nc5 $16) 21. Kb1 {[%emt 0:00:13]} b5 $1 {[%emt 0:00:07]} 22. Qd3 {[%emt 0:00:39]} Qb6 {[%emt 0:00:37]} (22... Qxd3+ $11 {keeps the balance.} 23. Rxd3 h5) 23. h5 $16 {[%emt 0:01:32] Strongly threatening hxg6.} g5 {[%emt 0:00:47]} 24. Qh3 {[%emt 0:03:46]} ({White should try} 24. Rde1 $16) 24... a5 $14 {[%emt 0:06:33]} 25. Qf5 {[%emt 0:01:34][%cal Oe4g5] Threatens to win with Nxg5!} Rde8 {[%emt 0:08:47]} 26. Rhe1 {[%emt 0:01:24]} b4 {[%emt 0:01:40]} 27. Ka2 {[%emt 0:02:22]} (27. cxb4 $1 $11 axb4 28. a4) 27... bxc3 $15 {[%emt 0:03:58]} 28. bxc3 {[%emt 0:00:35]} Qb5 {[%emt 0:00:30] And now ...Rb8 would win.} (28... a4 $5 29. Rb1 $8 Qa6 $15) 29. Qf1 {[%emt 0:00:20]} Qa4 $40 {[%emt 0:04:21][%mdl 128] Black attacks.} 30. Qd3 {[%emt 0:01:38] Inhibits Qc2+.} Bd6 {[%emt 0:01:40]} 31. Nxd6 {[%emt 0:00:57]} cxd6 {[%emt 0:00:04]} 32. Rxe8 {[%emt 0:02:27]} Rxe8 $11 {[%emt 0:00:05][%mdl 4096] Endgame KQR-KQR} 33. Rb1 {[%emt 0:00:03]} (33. c4 $11) 33... Qg4 $15 {[%emt 0:00:48][%csl LRg2,LRh5]} 34. h6 $2 {[%emt 0:01:11]} ({White should play} 34. Rb2 $15) 34... Qxg2+ $19 {[%emt 0:01:47]} 35. Rb2 {[%emt 0:00:01] [#]} Qh1 {[%emt 0:01:55]} 36. Qb5 {[%emt 0:00:05][%cal Rb5e8]} Rf8 {[%emt 0:00:26]} (36... Qe4 $19 {aiming for ...g4.} 37. a4 f5) 37. Qd7 {[%emt 0:01:15][%mdl 8192] Dodges g4} (37. Qc6 $11) 37... Qxd5+ {[%emt 0:00:47]} 38. Ka1 {[%emt 0:00:49][%csl Gh6][%cal Rd7g7]} Qh1+ {[%emt 0:00:49]} 39. Ka2 {[%emt 0:00:03][%csl Gh6][%cal Rd7g7]} Qxh6 {[%emt 0:00:43]} 40. Qxd6 {[%emt 0:00:18]} Qg7 {[%emt 0:01:08]} 41. Rb8 $2 {[%emt 0:00:00]} (41. c4 Qf7 42. Qc6) 41... Qf7+ {[%emt 0:00:00] Black is clearly winning.} 42. Kb2 {[%emt 0:00:01]} Rxb8+ {[%emt 0:00:00]} 43. Qxb8+ {[%emt 0:00:07]} Kg7 {[%emt 0:00:00] Excellently played by Kirk!   Weighted Error Value: White=0.52/Black=0.18 (very precise)} 0-1